[Event "26th Womens ECCC 2022"]
[Site "Mayrhofen"]
[Date "2022.10.08"]
[Round "6.27"]
[White "Schnegg, Anna-Lena"]
[Black "Reprun, Nadejda"]
[Result "0-1"]
[ECO "A00"]
[WhiteElo "2154"]
[BlackElo "1968"]
[Annotator "TA"]
[PlyCount "74"]
[EventDate "2022.10.03"]
[EventType "team-tourn"]
[EventCountry "AUT"]
[SourceTitle "playchess.com"]
[Source "ChessBase"]
[SourceQuality "1"]
[TimeControl "40/5400+30:1800+30"]

{[%evp 12,74,12,-15,-7,-31,-29,-38,-18,-24,-26,-27,-17,-28,-14,-50,-50,-51,-52,-52,-48,-93,-31,-37,-35,-43,-42,-64,-61,-58,-54,-64,-12,-17,0,0,19,25,26,0,25,21,24,-72,-69,-75,-73,-189,-116,-108,-115,-132,-119,-89,-46,-554,-552,-548,-543,-539,-322,-535,-530,-518,-514]} 1. g3 {[%emt 0:00:08]} d5 {[%emt 0:00:04]} 2. Bg2 {[%emt 0:00:52]} Nf6 {[%emt 0:00:07]} 3. Nf3 {[%emt 0:02:12]} Bf5 {[%emt 0:01:30]} 4. O-O {[%emt 0:03:52]} c6 {[%emt 0:00:14]} 5. d3 {[%emt 0:03:43]} h6 {[%emt 0:01:46]} 6. Nbd2 {[%emt 0:06:21]} e6 {[%emt 0:00:27]} 7. c3 {[%emt 0:04:05][%cal Oe2e4]} Be7 {[%emt 0:03:43] A07: Réti Opening: New York and Capablanca Systems.} 8. Qc2 {[%emt 0:04:54]} O-O {[%emt 0:04:37]} 9. b3 {[%emt 0:04:07]} Bh7 {[%emt 0:08:47] Black is slightly better.} 10. Bb2 {[%emt 0:00:42] [#]} Nbd7 $146 {[%emt 0:00:54]} ({Predecessor:} 10... a5 11. a3 Nbd7 12. e4 Qc7 13. e5 Ne8 14. a4 b5 15. Ba3 Bxa3 16. Rxa3 b4 {½-½ (16) Lengyel,L-Liebert,H Polanica Zdroj 1966}) 11. Rad1 {[%emt 0:04:56]} Qc7 {[%emt 0:04:11]} 12. Rfe1 {[%emt 0:06:21]} Rfd8 {[%emt 0:04:56]} 13. Qc1 {[%emt 0:04:20]} (13. c4 {looks sharper.} Bc5 14. a3 a5 15. Qc3) 13... a5 {[%emt 0:02:42]} 14. Ba3 {[%emt 0:08:30]} Bxa3 {[%emt 0:05:45]} 15. Qxa3 {[%emt 0:00:06]} b5 {[%emt 0:04:24]} 16. e4 {[%emt 0:09:14]} Nb6 {[%emt 0:12:49]} ({Black should play} 16... dxe4 $17 17. dxe4 Qb6) 17. e5 {[%emt 0:04:58]} Nfd7 {[%emt 0:00:27]} 18. d4 {[%emt 0:00:33]} c5 {[%emt 0:00:18]} 19. Qb2 {[%emt 0:03:07]} c4 {[%emt 0:05:50]} 20. Bf1 {[%emt 0:05:58][%cal Oa2a4]} Rdb8 {[%emt 0:01:35]} 21. Ra1 {[%emt 0:01:49]} b4 {[%emt 0:12:05]} (21... Qc8 $15) 22. Rec1 {[%emt 0:01:34]} Rc8 {[%emt 0:09:10]} 23. a3 {[%emt 0:11:02]} bxa3 {[%emt 0:08:04]} 24. Rxa3 {[%emt 0:01:24]} Rcb8 {[%emt 0:00:44]} 25. Rca1 {[%emt 0:01:41]} cxb3 {[%emt 0:00:38]} (25... a4 $5 26. bxa4 Nxa4 $1 $11) 26. Rxb3 {[%emt 0:01:48]} Nc4 {[%emt 0:01:03]} 27. Qa2 {[%emt 0:01:22]} (27. Bxc4 $11 dxc4 28. Rxb8+ Nxb8 29. Ne1) 27... Rxb3 $17 {[%emt 0:01:31]} 28. Qxb3 {[%emt 0:02:27][%cal Rd2c4]} Rb8 {[%emt 0:00:09]} 29. Qa4 {[%emt 0:01:25]} (29. Qd1 $17) 29... Ndb6 {[%emt 0:01:11]} ({Better is} 29... Nxd2 $19 30. Nxd2 Qxc3) 30. Qa2 {[%emt 0:00:58] [#]} Nxd2 $1 {[%emt 0:00:23] Black is more active.} 31. Qxd2 {[%emt 0:00:50]} Be4 $36 {[%emt 0:00:07][%mdl 2048] Keeping White busy.} 32. Ne1 {[%emt 0:00:25]} Rc8 {[%emt 0:01:22]} 33. Rxa5 $2 {[%emt 0:00:42][%mdl 8192] Loses the game.} (33. f3 $15 Bg6 34. Ra3) 33... Nc4 $19 {[%emt 0:00:24][%mdl 64] Discovered Attack} 34. Bxc4 {[%emt 0:00:32] And now Rc5 would win.} Qxa5 {[%emt 0:00:06]} 35. Bd3 {[%emt 0:00:30]} Qxc3 {[%emt 0:00:55]} 36. Qe3 {[%emt 0:00:31]} (36. Qxc3 {was forced.} Rxc3 37. Be2) 36... Bxd3 {[%emt 0:00:46]} 37. Nxd3 {[%emt 0:00:24]} Rc4 {[%emt 0:00:26] Weighted Error Value: White=0.57/Black=0.24 (precise)} 0-1

[Event "26th Womens ECCC 2022"]
[Site "Mayrhofen"]
[Date "2022.10.08"]
[Round "6.28"]
[White "Vardi, Shlomit"]
[Black "Wu, Min"]
[Result "1-0"]
[ECO "C50"]
[WhiteElo "1769"]
[BlackElo "1934"]
[Annotator "TA"]
[PlyCount "143"]
[EventDate "2022.10.03"]
[EventType "team-tourn"]
[EventCountry "AUT"]
[SourceTitle "playchess.com"]
[Source "ChessBase"]
[SourceQuality "1"]
[TimeControl "40/5400+30:1800+30"]

{[%evp 17,143,18,11,0,0,-6,-7,10,13,-47,-25,-55,-46,-97,-57,-86,-70,-172,-164,-166,-168,-172,-158,-150,-136,-145,-114,-345,-329,-410,-391,-416,-429,-713,-580,-709,-308,-283,-224,-225,-230,-213,-223,-258,-275,-265,-262,-261,-216,-241,-216,-287,-192,-271,-264,-293,-287,-293,-248,-303,-249,-617,-399,-400,-355,-320,-125,-124,-122,-118,-123,-125,-125,-125,-125,-145,-145,-149,-81,-81,18,-81,-73,-81,-58,-81,-81,-81,-65,-81,-66,-66,-31,-19,-18,-271,-273,-260,-33,-29,0,0,0,0,180,163,160,145,390,308,293,293,285,287,277,277,366,352,564,544,711,660,813,809,5385,5377,29965,5118]} 1. e4 {[%emt 0:00:04]} e5 {[%emt 0:00:04]} 2. Nf3 {[%emt 0:00:04]} Nc6 {[%emt 0:00:07]} 3. Bc4 {[%emt 0:00:08]} Nf6 {[%emt 0:00:05]} 4. d3 {[%emt 0:00:09]} Bc5 {[%emt 0:00:12]} 5. c3 {[%emt 0:00:24]} a6 {[%emt 0:00:18]} 6. Bb3 {[%emt 0:00:34]} Ba7 {[%emt 0:01:44]} 7. O-O {[%emt 0:00:22]} O-O {[%emt 0:01:48]} 8. Re1 {[%emt 0:00:48]} d6 {[%emt 0:00:13]} 9. Nbd2 {[%emt 0:02:00][%cal Bb1d2,Bd2c4,Bc4e3,Be3d5][%mdl 32]} Ng4 {[%emt 0:05:18]} 10. Rf1 {[%emt 0:04:24] C54: Giuoco Piano: 4 c3 Nf6, main lines with 5 d4 and 5 d3.} Kh8 {[%emt 0:09:00]} 11. h3 {[%emt 0:06:39]} Nh6 {[%emt 0:09:20]} 12. Nc4 {[%emt 0:09:19] The position is equal.} f5 {[%emt 0:00:37]} 13. exf5 {[%emt 0:10:31]} (13. Be3 $11) 13... Nxf5 $15 {[%emt 0:04:36]} 14. Ne3 {[%emt 0:02:58]} Nh4 {[%emt 0:12:13]} 15. Nh2 {[%emt 0:00:40] [#]} (15. Nxh4 $15 Qxh4 16. Bd5) 15... Ng6 $146 {[%emt 0:08:29]} ({Predecessor:} 15... Qg5 16. Bd5 Bxh3 17. Neg4 Bxg4 18. Bxg5 Bxd1 19. Raxd1 Ng6 20. g3 h6 21. Be3 Bxe3 22. fxe3 {0-1 (47) Ribeiro,F (2340)-Korneev,O (2565) Las Palmas 1997}) 16. Nd5 {[%emt 0:11:19]} Be6 {[%emt 0:05:14]} 17. Qh5 {[%emt 0:05:03]} (17. a4 $15) 17... Rf5 {[%emt 0:03:20]} 18. Qd1 {[%emt 0:01:48]} Na5 {[%emt 0:07:36]} 19. Ne3 {[%emt 0:01:56]} Nxb3 {[%emt 0:03:34]} 20. axb3 {[%emt 0:03:08]} Rf7 {[%emt 0:01:08]} 21. Nf3 {[%emt 0:05:03]} Nf4 {[%emt 0:07:25] [#] Hoping for ...Qf6.} 22. h4 $2 {[%emt 0:01:44]} (22. Nc4 $17 {is a better defense.}) 22... h6 $19 {[%emt 0:01:52]} 23. Kh2 {[%emt 0:08:26]} Qf6 {[%emt 0:03:30]} 24. d4 {[%emt 0:04:40]} e4 {[%emt 0:02:47]} 25. Nd2 {[%emt 0:01:31]} (25. g3 $142 exf3 26. Qxf3) 25... Qxh4+ {[%emt 0:00:34]} 26. Kg1 {[%emt 0:00:05]} Nd3 {[%emt 0:02:25]} (26... d5 $142 27. g3 Qg5 28. Nxe4 dxe4) 27. g3 {[%emt 0:02:12]} Qe7 {[%emt 0:04:04]} 28. Nxe4 {[%emt 0:00:50]} Nxc1 {[%emt 0:00:09]} 29. Rxc1 {[%emt 0:00:52]} Bh3 {[%emt 0:00:27][%csl LRe4,LRf1]} 30. Qd3 {[%emt 0:01:10]} Bxf1 {[%emt 0:00:46]} 31. Rxf1 {[%emt 0:00:08]} Re8 {[%emt 0:03:39]} 32. Nd2 {[%emt 0:00:40]} c6 {[%emt 0:00:08]} 33. Qg6 {[%emt 0:02:18]} d5 {[%emt 0:01:33]} 34. Kg2 {[%emt 0:00:42]} Qf6 {[%emt 0:01:11] Against Nf3} 35. Qh5 {[%emt 0:00:25]} (35. Qxf6 $142 Rxf6 36. Nf3) 35... Bb8 {[%emt 0:00:49]} 36. Nf3 {[%emt 0:01:52]} Kg8 {[%emt 0:00:51]} 37. Nd2 {[%emt 0:00:53]} Re6 {[%emt 0:00:37]} 38. b4 {[%emt 0:00:54]} Qg6 {[%emt 0:00:25]} 39. Qh3 {[%emt 0:00:22]} (39. Qxg6 Rxg6 40. Rh1) 39... Re8 {[%emt 0:00:34]} 40. Nf3 {[%emt 0:04:56]} Qe4 {[%emt 0:01:08]} 41. Qg4 {[%emt 0:30:35]} Ref8 $2 {[%emt 0:12:08]} (41... Qh7 $19 {has better winning chances. Threatens to win with ...h5.} 42. Qh3 Bc7) 42. Qxe4 $17 {[%emt 0:00:00]} dxe4 {[%emt 0:00:09]} 43. Nd2 {[%emt 0:00:00]} Re8 {[%emt 0:01:23]} 44. Re1 {[%emt 0:00:00]} g6 {[%emt 0:02:55]} 45. Ng4 {[%emt 0:00:00]} Kg7 {[%emt 0:00:38]} 46. Nxe4 {[%emt 0:00:00]} h5 {[%emt 0:01:28]} 47. Nh2 {[%emt 0:00:00]} Rf5 {[%emt 0:01:32]} ({Black should play} 47... Rfe7 48. f3 g5) 48. Nf3 {[%emt 0:00:00][%cal Oe4d6]} a5 {[%emt 0:01:05] [#]} ({Black should try} 48... Re7 $17) 49. bxa5 {[%emt 0:00:00]} (49. Nd6 $1 $11 {remains equal.} Rxe1 50. Nxf5+ gxf5 51. Nxe1 axb4 52. c4) 49... Rxa5 {[%emt 0:00:10]} 50. b4 {[%emt 0:00:00]} Ra2 {[%emt 0:02:17]} 51. Nfg5 {[%emt 0:00:00]} Bc7 {[%emt 0:00:51]} 52. Nf3 {[%emt 0:00:00]} Kh6 {[%emt 0:01:09]} 53. Re3 {[%emt 0:00:00]} Re7 {[%emt 0:04:17]} 54. Nfg5 {[%emt 0:00:00]} b6 {[%emt 0:01:48]} 55. Rf3 {[%emt 0:00:00]} Re2 {[%emt 0:03:15]} 56. Nf7+ $2 {[%emt 0:00:00][%mdl 8192]} (56. Rf6 $11) 56... Kg7 $19 {[%emt 0:00:21]} 57. Neg5 {[%emt 0:00:00][%cal Ob4b5]} Rc2 $2 {[%emt 0:01:50]} (57... Rb2 $19 {White must now prevent ...b5.} 58. Kg1 Rd2) 58. b5 $1 $15 {[%emt 0:00:00]} cxb5 {[%emt 0:00:42] ...Rd2 is the strong threat.} 59. d5 {[%emt 0:00:00][%cal Bd4d5,Bd5e6][%mdl 32]} Rd2 {[%emt 0:00:28]} 60. Ne6+ {[%emt 0:00:00] Pair of Knights!} Kg8 $2 {[%emt 0:01:00]} (60... Kh7 $1 $11) 61. Nfg5 $18 {[%emt 0:00:00][%csl Ge6][%cal Rf3f8]} Rxe6 {[%emt 0:01:01]} 62. dxe6 {[%emt 0:00:00][%mdl 4096] Endgame KRB-KRN} Re2 $2 {[%emt 0:00:29]} (62... Bd8 $16 {might work better.} 63. Nf7 Rd5) 63. Rf6 {[%emt 0:00:00] Strongly threatening Kf1.} Bd8 {[%emt 0:00:14]} 64. Rxg6+ {[%emt 0:00:00]} Kf8 {[%emt 0:00:10]} 65. Kf1 {[%emt 0:00:21]} Rc2 {[%emt 0:01:13]} 66. Ne4 {[%emt 0:00:23]} Be7 {[%emt 0:00:25]} 67. f4 {[%emt 0:00:37][%cal Bf2f4,Bf4f5,Bf5f6][%mdl 32] aiming for f5.} b4 $2 {[%emt 0:00:23]} (67... h4 68. f5 h3) 68. cxb4 {[%emt 0:00:05]} Rc4 {[%emt 0:00:40]} 69. Ng5 {[%emt 0:01:56]} Bxb4 {[%emt 0:00:12]} 70. f5 {[%emt 0:00:19]} Rc5 {[%emt 0:00:55]} 71. f6 {[%emt 0:01:03] Intending Nh7+ and mate.} Rf5+ {[%emt 0:00:31]} 72. Kg2 {[%emt 0:00:09] Weighted Error Value: White=0.45/Black=0.52} (72. Kg1 $142 Rxf6 73. Rxf6+ Ke8 74. Kf2 Bf8 75. Rf7 Bc5+ 76. Kf3 Bb4 77. Ne4) 1-0

[Event "26th Womens ECCC 2022"]
[Site "Mayrhofen"]
[Date "2022.10.08"]
[Round "6.29"]
[White "Enkhtuul, Altan-Ulzii"]
[Black "Peglau, Charis"]
[Result "1-0"]
[ECO "A05"]
[WhiteElo "2295"]
[BlackElo "1960"]
[Annotator "TA"]
[PlyCount "118"]
[EventDate "2022.10.03"]
[EventType "team-tourn"]
[EventCountry "AUT"]
[SourceTitle "playchess.com"]
[Source "ChessBase"]
[SourceQuality "1"]
[TimeControl "40/5400+30:1800+30"]

{[%evp 11,118,8,15,16,13,10,51,-5,49,-2,43,5,40,25,64,66,65,50,81,49,77,66,74,39,50,45,63,40,39,39,46,50,54,53,54,52,52,50,57,56,63,61,70,59,65,57,67,64,70,58,66,68,69,57,68,56,68,60,72,27,62,30,32,0,58,57,66,43,53,31,31,31,31,31,53,45,55,51,140,152,131,140,512,510,516,516,515,510,509,507,507,495,512,505,508,512,507,505,481,415,512,461,496,449,588,574,781,781,550]} 1. Nf3 {[%emt 0:00:03]} Nf6 {[%emt 0:00:07]} 2. g3 {[%emt 0:00:11]} g6 {[%emt 0:00:07]} 3. Bg2 {[%emt 0:00:04]} Bg7 {[%emt 0:00:04]} 4. O-O {[%emt 0:00:06]} O-O {[%emt 0:00:04]} 5. d4 {[%emt 0:00:26]} d5 {[%emt 0:00:06]} 6. Nbd2 {[%emt 0:00:44]} c6 {[%emt 0:00:59]} 7. Re1 {[%emt 0:00:23] D02: 1 d4 d5 2 Nf3 sidelines, including 2...Nf6 3 g3 and 2...Nf6 3 Bf4.} Bf5 {[%emt 0:05:15]} 8. Nh4 {[%emt 0:01:04]} Nbd7 {[%emt 0:01:00] [#]} 9. Nf1 $146 {[%emt 0:01:12]} (9. Nxf5 $14 gxf5 10. b3) ({Predecessor:} 9. f3 Qb6 10. Nxf5 gxf5 11. e3 e6 12. a4 c5 13. a5 Qc7 14. c3 Rfe8 15. f4 {0-1 (62) Gamarra,R (1957)-Chemin,J (2153) Maringa 2012}) 9... Nb6 {[%emt 0:05:34]} (9... Be6 $11) 10. c3 {[%emt 0:10:20]} ({White should try} 10. Nxf5 $14 gxf5 11. Nd2) 10... Nc4 {[%emt 0:02:42]} 11. Ne3 {[%emt 0:01:13]} Nd6 {[%emt 0:02:54]} 12. Nexf5 {[%emt 0:00:14]} Nxf5 {[%emt 0:00:45]} 13. Nxf5 {[%emt 0:00:15]} gxf5 {[%emt 0:00:01]} 14. Bf4 {[%emt 0:02:32]} Qd7 {[%emt 0:08:22]} 15. Qc1 {[%emt 0:03:37]} Kh8 {[%emt 0:02:59]} 16. Be5 {[%emt 0:03:07]} Rg8 {[%emt 0:02:54]} 17. c4 {[%emt 0:03:50]} Ne4 {[%emt 0:05:59]} 18. f3 {[%emt 0:09:01]} Nd6 {[%emt 0:13:32]} 19. cxd5 {[%emt 0:11:10]} cxd5 {[%emt 0:00:06]} 20. Qf4 {[%emt 0:00:43]} Nc4 {[%emt 0:02:21] aiming for ...f6.} 21. Bxg7+ {[%emt 0:00:39]} Rxg7 {[%emt 0:00:07]} 22. b3 {[%emt 0:00:31]} Nd6 {[%emt 0:01:17]} 23. Rac1 {[%emt 0:00:16]} f6 {[%emt 0:16:29]} 24. Rc5 {[%emt 0:01:57]} e6 {[%emt 0:00:59]} 25. Rec1 {[%emt 0:00:15]} Qd8 {[%emt 0:01:27]} 26. a4 {[%emt 0:07:53]} Ne8 {[%emt 0:05:45]} 27. Qe3 {[%emt 0:05:04]} Re7 {[%emt 0:00:44]} 28. R1c2 {[%emt 0:00:37]} Qd7 {[%emt 0:02:36]} 29. Qh6 {[%emt 0:00:48][%cal Rh6f8]} Rg7 {[%emt 0:01:10]} 30. Qc1 {[%emt 0:00:16] White has more active pieces.} Re7 {[%emt 0:01:35]} 31. Bf1 {[%emt 0:01:58]} a6 {[%emt 0:01:15]} 32. Qd2 {[%emt 0:03:09]} Rd8 {[%emt 0:03:27]} 33. Kf2 {[%emt 0:01:52]} Rg7 {[%emt 0:03:01]} 34. Qf4 {[%emt 0:10:08]} Qd6 {[%emt 0:03:56]} 35. Qc1 {[%emt 0:01:35]} Re7 {[%emt 0:02:40]} 36. Bh3 {[%emt 0:05:47]} Kg7 {[%emt 0:00:39]} 37. Bf1 {[%emt 0:01:32]} Kh8 {[%emt 0:00:09]} 38. Qh6 {[%emt 0:00:56][%cal Rh6f8]} Rg7 {[%emt 0:02:10]} 39. Bh3 {[%emt 0:00:31]} Kg8 {[%emt 0:01:43]} 40. Rc8 {[%emt 0:00:09]} Rxc8 41. Rxc8 {[%emt 0:30:03]} Qd7 {[%emt 0:31:16]} 42. Ra8 {[%emt 0:01:06] Strongly threatening Qxf6.} Rg6 {[%emt 0:00:00]} 43. Qf4 $40 {[%emt 0:00:00][%mdl 128] And now g4 would win. White has some attack.} Kf7 {[%emt 0:00:00]} 44. Qb8 {[%emt 0:00:00]} Rg8 {[%emt 0:00:00] [#]} ({Better is} 44... Qe7 $14) 45. g4 $1 $16 {[%emt 0:00:00]} fxg4 {[%emt 0:00:00]} 46. Bxg4 {[%emt 0:00:00] Threatens to win with Bh5+.} Rf8 $2 {[%emt 0:00:00][%mdl 8192] Loses the game.} (46... Kg7 $16) 47. Bh5+ $18 {[%emt 0:00:00]} Ke7 {[%emt 0:00:00]} 48. Qg3 {[%emt 0:00:00]} Qc6 {[%emt 0:00:00]} 49. Bxe8 {[%emt 0:00:00]} Rxe8 {[%emt 0:00:00][%mdl 4096] Endgame KQR-KQR} 50. Qg7+ {[%emt 0:00:00]} Kd6 {[%emt 0:00:00] [#]} 51. Rxe8 {[%emt 0:00:00]} ({Worse is} 51. Ra7 Rb8 $11) 51... Qxe8 {[%emt 0:00:00]} 52. Qxb7 {[%emt 0:00:00] KQ-KQ} Qh5 {[%emt 0:00:00]} 53. Qxa6+ {[%emt 0:00:00]} Kc7 {[%emt 0:00:00]} 54. Qa5+ {[%emt 0:00:00]} Kb7 {[%emt 0:00:00]} 55. Qb4+ {[%emt 0:00:00]} Kc7 {[%emt 0:00:32]} 56. Qe7+ {[%emt 0:00:00] White is clearly winning.} Kb8 {[%emt 0:00:23]} 57. Qd6+ {[%emt 0:00:00]} Kb7 {[%emt 0:00:06]} 58. a5 {[%emt 0:00:00]} Qh4+ {[%emt 0:00:18]} 59. Ke3 {[%emt 0:00:00] White threatens Qd7+ and mate.} Qg5+ {[%emt 0:00:07] Weighted Error Value: White=0.13 (very precise) /Black=0.31} 1-0

[Event "26th Womens ECCC 2022"]
[Site "Mayrhofen"]
[Date "2022.10.08"]
[Round "6.30"]
[White "Peglau, Dora"]
[Black "Klek, Hanna Marie"]
[Result "0-1"]
[ECO "A06"]
[WhiteElo "1745"]
[BlackElo "2301"]
[Annotator "TA"]
[PlyCount "60"]
[EventDate "2022.10.03"]
[EventType "team-tourn"]
[EventCountry "AUT"]
[SourceTitle "playchess.com"]
[Source "ChessBase"]
[SourceQuality "1"]
[TimeControl "40/5400+30:1800+30"]

{[%evp 9,60,23,27,28,25,14,16,10,15,7,20,0,27,24,37,39,51,31,38,7,20,0,43,0,0,0,0,-31,-20,-53,-50,-50,-48,-64,-45,-64,-45,-86,-83,-329,-299,-374,-404,-452,-459,-447,-330,-738,-703,-733,-702,-672,-510]} 1. Nf3 {[%emt 0:00:03]} d5 {[%emt 0:00:06]} 2. d4 {[%emt 0:00:10]} e6 {[%emt 0:00:12]} 3. c4 {[%emt 0:00:22]} a6 {[%emt 0:00:18]} 4. cxd5 {[%emt 0:00:35]} exd5 {[%emt 0:00:07]} 5. Nc3 {[%emt 0:00:36]} Be6 {[%emt 0:00:37]} 6. Bf4 {[%emt 0:01:22] D31: Queen's Gambit Declined: Semi-Slav without ...Nf6 (+ Marshall Gambit and Noteboom) and Exchange Variation lines without ...Nf6.} Bd6 {[%emt 0:00:14]} 7. Bg3 {[%emt 0:01:16]} Nf6 {[%emt 0:00:48]} 8. e3 {[%emt 0:00:25] The position is equal.} O-O {[%emt 0:00:24]} 9. Bd3 {[%emt 0:00:56]} c6 {[%emt 0:02:16] [#]} 10. O-O $146 {[%emt 0:00:08]} ({Predecessor:} 10. Qc2 h6 11. Ne5 Nh5 12. f4 Qc7 13. O-O Nxg3 14. hxg3 Nd7 15. f5 Bxe5 16. fxe6 Bxg3 17. exd7 Bh2+ 18. Kh1 Qg3 19. Rf3 Qg5 20. Kxh2 {1-0 (20) Zubov,A (2598)-Khabinets,I (1980) Chess.com INT 2021}) 10... Bg4 {[%emt 0:01:51]} 11. Qc2 {[%emt 0:05:06]} Bxf3 {[%emt 0:07:04]} 12. gxf3 {[%emt 0:00:06]} g6 {[%emt 0:01:57]} 13. Rad1 {[%emt 0:05:41]} a5 {[%emt 0:07:12]} 14. Be2 {[%emt 0:04:16]} Na6 {[%emt 0:07:09]} 15. e4 {[%emt 0:03:11] [#] And now e5 would win.} Nb4 {[%emt 0:04:06]} 16. Qb1 {[%emt 0:00:58] e5 is the strong threat.} Nh5 {[%emt 0:00:53]} 17. a3 {[%emt 0:03:41]} Na6 {[%emt 0:01:34][%cal Bb4a6,Ba6c7,Bc7e6][%mdl 32]} (17... f5 $5 {[%cal Rf5f4]}) 18. Kh1 {[%emt 0:09:35]} Bf4 {[%emt 0:07:57]} 19. b4 {[%emt 0:13:02]} axb4 {[%emt 0:01:07]} 20. axb4 {[%emt 0:00:06]} Nc7 {[%emt 0:02:49]} 21. b5 {[%emt 0:03:08]} Qd6 {[%emt 0:04:13]} 22. Qc2 {[%emt 0:10:46]} Ne6 {[%emt 0:01:48] Black is more active.} ({Much worse is} 22... Nxg3+ 23. fxg3 Bh6 24. bxc6 bxc6 25. f4 $11) 23. bxc6 {[%emt 0:02:00]} bxc6 {[%emt 0:00:07]} ({Reject} 23... Bxg3 24. fxg3 (24. cxb7 Bxh2 25. bxa8=N Rxa8 $11) 24... bxc6 25. f4 $14) 24. e5 $2 {[%emt 0:06:49] [#] Now White is beyond hope.} (24. Rd3 $17 {might work better.}) 24... Qb4 $19 {[%emt 0:01:11]} 25. Bxf4 {[%emt 0:13:09]} Nhxf4 {[%emt 0:01:22]} 26. Qd2 {[%emt 0:00:13]} Rfb8 {[%emt 0:05:19]} 27. Rfe1 {[%emt 0:02:56]} Ra3 {[%emt 0:02:05]} 28. Nb1 {[%emt 0:02:24]} (28. Rb1 Qf8 29. Bf1) 28... Qxd2 {[%emt 0:00:17] Black is clearly winning.} 29. Nxd2 {[%emt 0:01:41]} Ra2 {[%emt 0:03:23]} 30. Bf1 {[%emt 0:04:46]} Nxd4 {[%emt 0:00:23] Weighted Error Value: White=0.53/Black=0.13 (very precise)} 0-1

[Event "26th Womens ECCC 2022"]
[Site "Mayrhofen"]
[Date "2022.10.08"]
[Round "6.31"]
[White "Navrotescu, Andreea"]
[Black "Peglau, Mirjam"]
[Result "1-0"]
[ECO "A34"]
[WhiteElo "2287"]
[BlackElo "1886"]
[Annotator "TA"]
[PlyCount "43"]
[EventDate "2022.10.03"]
[EventType "team-tourn"]
[EventCountry "AUT"]
[SourceTitle "playchess.com"]
[Source "ChessBase"]
[SourceQuality "1"]
[TimeControl "40/5400+30:1800+30"]

{[%evp 18,43,0,0,83,0,0,0,43,-14,-14,-52,-76,-70,-70,-68,-56,-79,-35,-73,-35,-37,-34,-110,41,37,216,214]} 1. c4 {[%emt 0:00:03]} c5 {[%emt 0:00:04][%cal Bc7c5,Bc5d4,Bd4c3][%mdl 32]} 2. Nc3 {[%emt 0:00:06]} Nf6 {[%emt 0:00:04][%cal Bg8f6,Bf6d5,Bd5b4][%mdl 32]} 3. Nf3 {[%emt 0:00:20]} d5 {[%emt 0:00:05]} 4. cxd5 {[%emt 0:00:07]} Nxd5 {[%emt 0:00:01]} 5. e4 {[%emt 0:00:19]} Nb4 {[%emt 0:01:03]} 6. d4 {[%emt 0:00:42]} cxd4 {[%emt 0:01:02]} 7. Bb5+ {[%emt 0:00:10]} N8c6 {[%emt 0:01:32]} 8. a3 {[%emt 0:00:50]} dxc3 {[%emt 0:03:40]} 9. Qxd8+ {[%emt 0:03:14]} Kxd8 {[%emt 0:00:02]} 10. axb4 {[%emt 0:00:15]} Bd7 {[%emt 0:38:03] A34: Symmetrical English: 2 Nc3, lines with ...d5.} ({Don't take} 10... Nxb4 11. O-O c2 12. Ne5 $14) (10... cxb2 $11 {remains equal.} 11. Bxb2 Bd7) 11. O-O {[%emt 0:01:36]} (11. bxc3 $16 {Strongly threatening Be2.} g6 12. O-O) 11... cxb2 $11 {[%emt 0:07:50]} 12. Bxb2 {[%emt 0:00:04]} f6 {[%emt 0:00:05] The position is equal.} 13. Rfd1 {[%emt 0:05:38]} (13. Bc4 $14) 13... Ke8 {[%emt 0:09:55]} 14. Ba4 {[%emt 0:18:08][%cal Bb5a4,Ba4b3,Bb3c4][%mdl 32]} e5 {[%emt 0:00:38]} 15. b5 {[%emt 0:00:38]} Nd8 {[%emt 0:05:22] [#]} 16. Nd2 $146 {[%emt 0:11:23]} ({Predecessor:} 16. Rac1 Ne6 17. Rd5 Nf4 18. Rxd7 Kxd7 19. b6+ Ke6 20. Bb3+ Ke7 21. Rc7+ Kd8 22. Rxb7 axb6 23. Bc4 Ra4 24. Nd2 Kc8 25. Rf7 Bc5 26. g3 Rd8 27. Bc3 Rxc4 {0-1 (27) Rohde,M (2565)-Comp WChess Boston 1994}) 16... Bc5 {[%emt 0:08:48]} 17. Nc4 {[%emt 0:02:20]} b6 {[%emt 0:03:41]} 18. Ne3 {[%emt 0:14:02]} Ne6 {[%emt 0:04:22]} 19. Bb3 $1 {[%emt 0:01:22]} Nc7 {[%emt 0:01:30]} 20. Nd5 {[%emt 0:05:35]} (20. Bd5 $15 Nxd5 21. Nxd5) 20... Ne6 $2 {[%emt 0:00:27]} ({Black should play} 20... Nxb5 $17 {...a5 is the strong threat.} 21. Ba4 Nd4 22. Nc7+ Ke7 23. Nxa8 (23. Bxd7 Kxd7 24. Nxa8 Rxa8 $15) 23... b5) 21. Bc4 $14 {[%emt 0:04:09][%mdl 1024] White has compensation.} Kd8 $2 {[%emt 0:02:08] [#]} ({Better is} 21... h5 $14) 22. Nxb6 $1 {[%mdl 512] Weighted Error Value: White=0.29 (precise) /Black=0.53} 1-0